bitfinex/quotes_BTCUSD_20260117
["timestamp","ask_amount","ask_price","bid_price","bid_amount"]
[1768675200952,0.06287399,95429.0,95426.0,0.01047932]
[1768675202785,0.01047888,95430.0,95426.0,0.01047932]
[1768675203822,0.01047888,95430.0,95426.0,0.06287582]
[1768675204167,0.01047866,95432.0,95428.0,0.06287457]
[1768675210450,0.01047866,95432.0,95428.0,0.0104791]
[1768675210773,0.01047877,95431.0,95428.0,0.0104791]
[1768675215087,0.01047888,95430.0,95424.0,0.01047954]
[1768675215305,0.01047888,95430.0,95425.0,0.01047943]
[1768675216386,0.01047899,95429.0,95425.0,0.01047943]
[1768675216724,0.01047899,95429.0,95425.0,0.06287649]
[1768675218225,0.06287399,95429.0,95425.0,0.01047943]
[1768675218538,0.0104791,95428.0,95424.0,0.01047954]
[1768675219424,0.01047921,95427.0,95423.0,0.06287775]
[1768675220270,0.01047921,95427.0,95424.0,0.01047954]
[1768675229693,0.0104791,95428.0,95424.0,0.01047954]
[1768675229907,0.0104791,95428.0,95425.0,0.01047943]
[1768675230315,0.06287474,95428.0,95423.0,0.01047965]
[1768675230521,0.0104791,95428.0,95424.0,0.01047954]
[1768675230927,0.0104791,95428.0,95425.0,0.01047943]
[1768675236534,0.01047899,95429.0,95425.0,0.06287644]
[1768675236733,0.01047899,95429.0,95425.0,0.01047943]
[1768675236909,0.01047899,95429.0,95425.0,0.0628765]
[1768675237525,0.01047899,95429.0,95426.0,0.01047932]
[1768675239969,0.01047921,95427.0,95421.0,0.01047987]
[1768675240181,0.01047921,95427.0,95424.0,0.01047954]
[1768675240615,0.01047921,95427.0,95422.0,0.06287853]
[1768675241351,0.01047921,95427.0,95424.0,0.01047954]
[1768675241756,0.06287399,95429.0,95424.0,0.06287724]
[1768675242927,0.0104791,95428.0,95424.0,0.01047954]
[1768675244597,0.0104791,95428.0,95425.0,0.01047943]
[1768675248577,0.06287506,95428.0,95424.0,0.01047954]
[1768675248782,0.01047921,95427.0,95424.0,0.01047954]
[1768675251092,0.0104791,95428.0,95425.0,0.01047943]
[1768675251340,0.06287482,95428.0,95424.0,0.01047954]
[1768675251999,0.0104791,95428.0,95424.0,0.01047954]
[1768675252196,0.01047921,95427.0,95424.0,0.01047954]
[1768675254627,0.01047921,95427.0,95423.0,0.01047965]
[1768675256882,0.01047921,95427.0,95423.0,0.06287787]
[1768675262847,0.01047921,95427.0,95423.0,0.01047965]
[1768675263072,0.01047932,95426.0,95423.0,0.01047965]
[1768675263202,0.01047943,95425.0,95421.0,0.01047987]
[1768675263422,0.01047954,95424.0,95419.0,0.01048009]
[1768675263633,0.01047976,95422.0,95419.0,4.715e-05]
[1768675264296,0.0628787,95422.0,95419.0,4.715e-05]
[1768675264551,0.01047965,95423.0,95419.0,0.01052724]
[1768675264725,0.06287795,95423.0,95419.0,0.01052724]
[1768675265623,0.01047976,95422.0,95419.0,4.715e-05]
[1768675267666,0.05239991,95420.0,95419.0,4.715e-05]
[1768675267888,0.05239991,95420.0,95417.0,0.127]
[1768675267889,0.06288223,95418.0,95411.0,0.05240466]
[1768675268419,0.06288223,95418.0,95410.0,0.06288637]
[1768675268629,0.05240156,95417.0,95411.0,0.0524047]
[1768675268787,0.05240256,95416.0,95410.0,0.01048108]
[1768675268992,0.05240256,95416.0,95410.0,0.062886]
[1768675269214,0.01048053,95415.0,95411.0,0.06288573]
[1768675269422,0.01048064,95414.0,95408.0,0.0628868]
[1768675269674,0.01048108,95410.0,95407.0,0.0001577]
[1768675269881,0.05240613,95409.0,95407.0,0.00015951]
[1768675270062,0.01048108,95410.0,95407.0,0.0001142]
[1768675270387,0.06288657,95410.0,95407.0,0.0001142]
[1768675270607,0.05240614,95409.0,95407.0,0.0001142]
[1768675270794,0.01048108,95410.0,95407.0,0.0001142]
[1768675271294,0.01048097,95411.0,95407.0,0.01059561]
[1768675272193,0.01048108,95410.0,95407.0,0.0001142]
[1768675275779,0.06288656,95410.0,95407.0,0.0001142]
[1768675276247,0.06288656,95410.0,95407.0,6.889e-05]
[1768675276381,0.01048108,95410.0,95407.0,6.889e-05]
[1768675277022,0.0104813,95408.0,95394.0,0.03763086]
[1768675277386,0.01048108,95410.0,95407.0,0.01048141]
[1768675278130,0.01048097,95411.0,95407.0,0.06288837]
[1768675278312,0.01048097,95411.0,95407.0,0.01028624]
[1768675278531,0.01048108,95410.0,95406.0,0.01048152]
[1768675278737,0.01048108,95410.0,95406.0,0.06288899]
[1768675278942,0.01048108,95410.0,95407.0,0.01048141]
[1768675283273,0.01048097,95411.0,95407.0,0.01048141]
[1768675284015,0.127,95412.0,95408.0,0.0104813]
[1768675284418,0.127,95412.0,95409.0,0.05240554]
[1768675284634,0.01048042,95416.0,95411.0,0.01048097]
[1768675284837,0.127,95413.0,95411.0,0.06288577]
[1768675285196,0.127,95413.0,95411.0,0.01048097]
[1768675287433,0.127,95413.0,95409.0,0.01048119]
[1768675287633,0.13748075,95413.0,95409.0,0.06288712]
[1768675287863,0.13748075,95413.0,95410.0,0.01048108]
[1768675292201,0.127,95413.0,95410.0,0.01048108]
[1768675293835,0.127,95413.0,95410.0,0.06288647]
[1768675295740,0.127,95413.0,95410.0,0.01048108]
[1768675297161,0.127,95413.0,95410.0,0.06288629]
[1768675297583,0.127,95413.0,95410.0,0.06288644]
[1768675298238,0.127,95413.0,95410.0,0.01048108]
[1768675298952,0.127,95413.0,95410.0,0.06288645]
[1768675299460,0.127,95413.0,95410.0,0.06288638]
[1768675301108,0.13748075,95413.0,95409.0,0.01048119]
[1768675302054,0.13748075,95413.0,95409.0,0.06288674]
[1768675302278,0.13748075,95413.0,95410.0,0.01048108]
[1768675305081,0.127,95413.0,95410.0,0.06288637]
[1768675305291,0.01047954,95424.0,95417.0,0.01048031]
[1768675305486,0.01047954,95424.0,95421.0,0.01047987]
[1768675305904,0.01047954,95424.0,95420.0,0.01047998]
[1768675305905,0.01047965,95423.0,95420.0,0.01047998]
[1768675306324,0.06287796,95423.0,95418.0,0.06288115]
[1768675306527,0.01047976,95422.0,95418.0,0.0104802]
[1768675306925,0.01047976,95422.0,95418.0,0.06288115]
[1768675309744,0.01047954,95424.0,95419.0,0.01048009]
[1768675309945,0.01047954,95424.0,95419.0,0.06288009]
[1768675311323,0.01047965,95423.0,95420.0,0.01047998]
[1768675313633,0.01047954,95424.0,95420.0,0.01047998]
[1768675313855,0.12749392,95426.0,95423.0,0.01047965]
[1768675314214,0.12749392,95426.0,95424.0,0.05239771]
[1768675314411,0.12749392,95426.0,95425.0,0.05239717]
[1768675314782,0.00049392,95426.0,95425.0,0.05239717]
[1768675314987,0.00049392,95426.0,95423.0,0.06287788]
[1768675315192,0.00049392,95426.0,95423.0,0.01047965]
[1768675315418,0.00049392,95426.0,95423.0,0.06287743]
[1768675317165,0.01097324,95426.0,95423.0,0.01047965]
[1768675318209,0.01047943,95425.0,95421.0,0.01047987]
[1768675318410,0.01047943,95425.0,95422.0,0.01047976]
[1768675319734,0.01047943,95425.0,95420.0,0.01047998]
[1768675319735,0.01047954,95424.0,95420.0,0.01047998]
[1768675320008,0.06287727,95424.0,95420.0,0.01047998]
[1768675320817,0.01047954,95424.0,95420.0,0.01047998]
[1768675321252,0.01047954,95424.0,95421.0,0.01047987]
[1768675322257,0.0628777,95424.0,95420.0,0.01047998]
[1768675322669,0.01047954,95424.0,95420.0,0.06287974]
[1768675322867,0.01047965,95423.0,95420.0,0.01047998]
[1768675323072,0.01047954,95424.0,95420.0,0.01047998]
[1768675323274,0.01047954,95424.0,95421.0,0.01047987]
[1768675324018,0.01047943,95425.0,95422.0,0.01047976]
[1768675326981,0.01097324,95426.0,95422.0,0.06287853]
[1768675327942,0.06337041,95426.0,95421.0,0.01047987]
[1768675329659,0.06337041,95426.0,95422.0,0.01047976]
[1768675330204,0.0628766,95425.0,95420.0,0.01047998]
[1768675330407,0.01047954,95424.0,95420.0,0.01047998]
[1768675330610,0.06287774,95424.0,95420.0,0.01047998]
[1768675331330,0.01047954,95424.0,95420.0,0.01047998]
[1768675331858,0.01047954,95424.0,95420.0,0.06287969]
[1768675332154,0.01047954,95424.0,95421.0,0.06287922]
[1768675332355,0.01047943,95425.0,95421.0,0.06287922]
[1768675332565,0.01047943,95425.0,95421.0,0.0628792]
[1768675334981,0.01008845,95425.0,95421.0,0.0628792]
[1768675335154,0.00969748,95425.0,95421.0,0.0628792]
[1768675336361,0.00969748,95425.0,95422.0,0.01047976]
[1768675337179,0.00969748,95425.0,95421.0,0.0628792]
[1768675337459,0.00969748,95425.0,95421.0,0.01047987]
[1768675337909,0.01047954,95424.0,95420.0,0.01047998]
[1768675338345,0.01047954,95424.0,95421.0,0.01047987]
[1768675338927,0.00969748,95425.0,95421.0,0.06287922]
[1768675339497,0.06287725,95424.0,95419.0,0.03866266]
[1768675339705,0.01047976,95422.0,95419.0,0.02818257]
[1768675339914,0.0628786,95422.0,95419.0,0.02818257]
[1768675341442,0.06287925,95421.0,95417.0,0.03866288]
[1768675341655,0.01047987,95421.0,95417.0,0.03866288]
[1768675342113,0.06287932,95421.0,95417.0,0.03866288]
[1768675342526,0.01047987,95421.0,95417.0,0.03866288]
[1768675342758,0.01008885,95421.0,95417.0,0.03866288]
[1768675343730,0.06248823,95421.0,95417.0,0.03866288]
[1768675343935,0.01047998,95420.0,95417.0,0.03866288]
[1768675346148,0.01047998,95420.0,95417.0,0.02818257]
[1768675349133,0.05240101,95418.0,95417.0,0.02818257]
[1768675349339,0.06288227,95417.0,95414.0,0.127]
[1768675349969,0.01008928,95417.0,95414.0,0.127]
[1768675350170,0.05240211,95416.0,95414.0,0.127]
[1768675350579,0.05240266,95415.0,95414.0,0.127]
[1768675350979,0.06288319,95415.0,95412.0,0.01048086]
[1768675351769,0.0628841,95414.0,95410.0,0.127]
[1768675351968,0.01048064,95414.0,95410.0,0.18988648]
[1768675352191,0.01048075,95413.0,95410.0,0.13748108]
[1768675352417,0.01048064,95414.0,95410.0,0.13748108]
[1768675353347,0.01048064,95414.0,95411.0,0.01048097]
[1768675353779,0.06249095,95417.0,95412.0,0.06288513]
[1768675353986,0.01008928,95417.0,95412.0,0.06288513]
[1768675354559,0.06249094,95417.0,95412.0,0.06288513]
[1768675355389,0.01008928,95417.0,95413.0,0.01048075]
[1768675356621,0.01008928,95417.0,95414.0,0.01048064]
[1768675361350,0.01008928,95417.0,95413.0,0.01048075]
[1768675362082,0.01048042,95416.0,95413.0,0.01048075]
[1768675362309,0.01048042,95416.0,95413.0,0.01043543]
[1768675362938,0.01048042,95416.0,95413.0,0.06283917]
[1768675363096,0.01008928,95417.0,95413.0,0.06283917]
[1768675364870,0.0628801,95420.0,95414.0,0.01048064]
[1768675365131,0.01048009,95419.0,95415.0,0.01048053]
[1768675365345,0.01048009,95419.0,95412.0,0.0524039]
[1768675365346,0.01048031,95417.0,95412.0,0.0524039]
[1768675366338,0.01048042,95416.0,95413.0,0.01048075]
[1768675370396,0.01048031,95417.0,95413.0,0.01048075]
[1768675370901,0.01048031,95417.0,95413.0,0.06288449]
[1768675371465,0.06288189,95417.0,95413.0,0.01048075]
[1768675373298,0.01048031,95417.0,95413.0,0.01048075]
[1768675374064,0.06288189,95417.0,95413.0,0.01048075]
[1768675375305,0.06249083,95417.0,95413.0,0.01048075]
[1768675377135,0.01048042,95416.0,95413.0,0.01048075]
[1768675377560,0.01048053,95415.0,95411.0,0.04811183]
[1768675377765,0.01048053,95415.0,95412.0,0.01048086]
[1768675378612,0.06288327,95415.0,95411.0,0.04811183]
[1768675378972,0.06288327,95415.0,95412.0,0.01048086]
[1768675378973,0.01048053,95415.0,95412.0,0.01048086]
[1768675379810,0.01048053,95415.0,95411.0,0.04811183]
[1768675380017,0.01048053,95415.0,95411.0,0.10051667]
[1768675380558,0.06288387,95414.0,95411.0,0.03763086]
[1768675380790,0.01048064,95414.0,95411.0,0.03763086]
[1768675381420,0.01048064,95414.0,95411.0,0.04811183]
[1768675382030,0.01048064,95414.0,95411.0,0.10051667]
[1768675382205,0.0623217,95414.0,95411.0,0.03763086]
[1768675382409,0.00991838,95414.0,95411.0,0.03763086]
[1768675383015,0.06193063,95414.0,95411.0,0.03763086]
[1768675383427,0.0524039,95413.0,95411.0,0.03763086]
[1768675383604,0.06193091,95414.0,95411.0,0.03763086]
[1768675384215,0.0095273,95414.0,95411.0,0.03763086]
[1768675384755,0.06193103,95414.0,95411.0,0.03763086]
[1768675384961,0.0095273,95414.0,95411.0,0.03763086]
[1768675385205,0.0095273,95414.0,95411.0,0.04811183]
[1768675385693,0.01048053,95415.0,95412.0,0.01048086]
[1768675390758,0.01008945,95415.0,95412.0,0.01048086]
[1768675393625,0.01008945,95415.0,95411.0,0.1005166]
[1768675393626,0.01048064,95414.0,95411.0,0.04811183]
[1768675395426,0.01008945,95415.0,95411.0,0.04811183]
[1768675395630,0.01048064,95414.0,95411.0,0.04811183]
[1768675395793,0.01008945,95415.0,95412.0,0.01048086]
[1768675396117,0.01048064,95414.0,95411.0,0.04811183]
[1768675396973,0.01048097,95411.0,95408.0,0.17513541]
[1768675397102,0.01048119,95409.0,95406.0,0.01048152]
[1768675398332,0.01009006,95409.0,95406.0,0.01048152]
[1768675399525,0.01048141,95407.0,95404.0,0.127]
[1768675400320,0.05240807,95406.0,95404.0,0.127]
[1768675400521,0.06288853,95407.0,95402.0,0.01048196]
[1768675402084,0.01048141,95407.0,95403.0,0.01048185]
[1768675402290,0.01009006,95409.0,95404.0,0.01048174]
[1768675402461,0.01009006,95409.0,95405.0,0.0524081]
[1768675402843,0.01048097,95411.0,95406.0,0.01048152]
[1768675403033,0.01048042,95416.0,95409.0,0.01048119]
[1768675403243,0.05240295,95415.0,95411.0,0.01048097]
[1768675403489,0.01048042,95416.0,95411.0,0.06288565]
[1768675403900,0.01048042,95416.0,95413.0,0.01048075]
[1768675404238,0.01048031,95417.0,95414.0,0.01048064]
[1768675405425,0.01048064,95414.0,95410.0,0.01048108]
[1768675405633,0.01048064,95414.0,95410.0,0.06288609]
[1768675406294,0.01048064,95414.0,95411.0,0.01048097]
[1768675406634,0.01048064,95414.0,95410.0,0.01048108]
[1768675407033,0.01048053,95415.0,95411.0,0.01048097]
[1768675408803,0.01048075,95413.0,95405.0,0.01048163]
[1768675408958,0.01048141,95407.0,95404.0,0.01048174]
[1768675409182,0.01048141,95407.0,95406.0,0.02822996]
[1768675409361,0.01048141,95407.0,95404.0,0.01048174]
[1768675409567,0.01048141,95407.0,95406.0,0.02822987]
[1768675409776,0.01048141,95407.0,95406.0,0.0282299]
[1768675415579,0.01048141,95407.0,95406.0,0.02803434]
[1768675417456,0.01048174,95404.0,95400.0,0.127]
[1768675417695,0.01048185,95403.0,95400.0,0.127]
[1768675417901,0.01048185,95403.0,95395.0,0.01048272]
[1768675417902,0.01048207,95401.0,95395.0,0.01048272]
[1768675418150,0.01048196,95402.0,95398.0,0.01070927]
[1768675419850,0.01048185,95403.0,95399.0,0.01048229]
[1768675420057,0.06289139,95403.0,95399.0,0.01048229]
[1768675420259,0.01048185,95403.0,95400.0,0.01048218]
[1768675422230,0.01048174,95404.0,95400.0,0.06289301]
[1768675422429,0.01048174,95404.0,95401.0,0.01048207]
[1768675422833,0.01048185,95403.0,95400.0,0.01048218]
[1768675423038,0.01048185,95403.0,95400.0,0.01028662]
[1768675423794,0.01048174,95404.0,95400.0,0.01028662]
[1768675423993,0.01048141,95407.0,95402.0,0.06289163]
[1768675424201,0.01048119,95409.0,95403.0,0.06289107]
[1768675424406,0.06288733,95409.0,95404.0,0.05240865]
[1768675424958,0.01048119,95409.0,95406.0,0.01048152]
[1768675425460,0.0104813,95408.0,95405.0,0.01048163]
[1768675425816,0.01048119,95409.0,95406.0,0.01048152]
[1768675426931,0.01048108,95410.0,95405.0,0.01048163]
[1768675427135,0.0104813,95408.0,95404.0,0.01048174]
[1768675427945,0.0104813,95408.0,95405.0,0.01048163]
[1768675428330,0.0104813,95408.0,95405.0,0.06288973]
[1768675428541,0.01048108,95410.0,95406.0,0.01048152]
[1768675429560,0.01048108,95410.0,95406.0,0.06288909]
[1768675431304,0.01048108,95410.0,95406.0,0.01048152]
[1768675431881,0.01048119,95409.0,95405.0,0.01048163]
[1768675432106,0.0104813,95408.0,95405.0,0.01048163]
[1768675432449,0.06288821,95408.0,95404.0,0.01048174]
[1768675432661,0.01048141,95407.0,95404.0,0.01048174]
[1768675433456,0.0104813,95408.0,95404.0,0.01048174]
[1768675434332,0.0104813,95408.0,95405.0,0.01048163]
[1768675437101,0.0104813,95408.0,95405.0,0.01033245]
[1768675437528,0.01048119,95409.0,95405.0,0.06274059]
[1768675437769,0.06288757,95409.0,95405.0,0.01033245]
[1768675437970,0.01048119,95409.0,95405.0,0.01033245]
[1768675438171,0.01048108,95410.0,95406.0,0.06269372]
[1768675438579,0.06288656,95410.0,95406.0,0.01028618]
[1768675439100,0.01048108,95410.0,95407.0,0.01048141]
[1768675439513,0.01048108,95410.0,95406.0,0.01028618]
[1768675440694,0.0628856,95412.0,95407.0,0.01048141]
[1768675441054,0.06288534,95412.0,95408.0,0.0104813]
[1768675442060,0.06288534,95412.0,95408.0,0.01023987]
[1768675442185,0.01048086,95412.0,95408.0,0.01023987]
[1768675443259,0.01048086,95412.0,95408.0,0.06264634]
[1768675443594,0.01048108,95410.0,95406.0,0.01028618]
[1768675443796,0.01048108,95410.0,95406.0,0.06269378]
[1768675444164,0.01048108,95410.0,95406.0,0.01028618]
[1768675444711,0.01048086,95412.0,95408.0,0.0104813]
[1768675445239,0.01048086,95412.0,95408.0,0.0628874]
[1768675445449,0.01048086,95412.0,95409.0,0.01048119]
[1768675445697,0.01048075,95413.0,95410.0,0.01048108]
[1768675446029,0.05240308,95415.0,95410.0,0.06288622]
[1768675446030,0.06288322,95415.0,95410.0,0.06288622]
[1768675446228,0.06288474,95413.0,95409.0,0.01048119]
[1768675446913,0.06288474,95413.0,95407.0,0.06288838]
[1768675446914,0.06288524,95412.0,95407.0,0.06288838]
[1768675447101,0.01048086,95412.0,95408.0,0.0104813]
[1768675447499,0.0103902,95412.0,95408.0,0.0104813]
[1768675447821,0.0103902,95412.0,95407.0,0.06288846]
[1768675448819,0.06288589,95411.0,95407.0,0.01048141]
[1768675449810,0.01048097,95411.0,95407.0,0.06288839]
[1768675450009,0.0103902,95412.0,95408.0,0.0104813]
[1768675450941,0.0103902,95412.0,95409.0,0.01048119]
[1768675451368,0.06279479,95412.0,95408.0,0.0104813]
[1768675451904,0.01048097,95411.0,95408.0,0.0104813]
[1768675452775,0.01048097,95411.0,95408.0,0.01028608]
[1768675453595,0.0103902,95412.0,95409.0,0.01048119]
[1768675453804,0.01048075,95413.0,95409.0,0.01048119]
[1768675454494,0.01048075,95413.0,95410.0,0.01048108]
[1768675455771,0.01048064,95414.0,95410.0,0.06288643]
[1768675456864,0.05240169,95417.0,95412.0,0.01048086]
[1768675456865,0.062882,95417.0,95412.0,0.01048086]
[1768675457075,0.01048031,95417.0,95412.0,0.01048086]
[1768675457510,0.06288197,95417.0,95412.0,0.06288506]
[1768675457711,0.01048042,95416.0,95413.0,0.01048075]
[1768675460160,0.01048042,95416.0,95413.0,0.01028552]
[1768675461380,0.06288319,95415.0,95411.0,0.01048097]
[1768675462409,0.06288319,95415.0,95410.0,0.06288645]
[1768675462410,0.06288451,95413.0,95409.0,0.01048119]
[1768675462836,0.01048086,95412.0,95409.0,0.01048119]
[1768675464305,0.01048075,95413.0,95409.0,0.01048119]
[1768675464510,0.01048086,95412.0,95408.0,0.0104813]
[1768675465171,0.01048086,95412.0,95408.0,0.06288778]
[1768675465327,0.01048064,95414.0,95411.0,0.01048097]
[1768675466570,0.01048053,95415.0,95411.0,0.06288572]
[1768675466971,0.01048053,95415.0,95411.0,0.01048097]
[1768675467468,0.01048053,95415.0,95411.0,0.01028579]
[1768675467664,0.01048053,95415.0,95411.0,0.00989532]
[1768675468655,0.01048053,95415.0,95411.0,0.06230017]
[1768675468856,0.01048053,95415.0,95412.0,0.01048086]
[1768675469258,0.01048042,95416.0,95412.0,0.06288509]
[1768675469869,0.01048042,95416.0,95413.0,0.01048075]
[1768675470280,0.01048042,95416.0,95412.0,0.01048086]
[1768675470498,0.01048042,95416.0,95413.0,0.01048075]
[1768675471492,0.06288136,95418.0,95413.0,0.06288443]
[1768675473407,0.01048053,95415.0,95411.0,0.01048097]
[1768675473619,0.06288325,95415.0,95411.0,0.01048097]
[1768675473818,0.06288324,95415.0,95411.0,0.01048097]
[1768675474028,0.01048064,95414.0,95411.0,0.01048097]
[1768675474843,0.01048064,95414.0,95411.0,0.01028586]
[1768675475273,0.01048075,95413.0,95410.0,0.01048108]
[1768675475476,0.01048053,95415.0,95411.0,0.06288557]
[1768675476178,0.01048053,95415.0,95412.0,0.01048086]
[1768675477079,0.01048042,95416.0,95413.0,0.01048075]
[1768675477716,0.0102104,95416.0,95413.0,0.01028573]
[1768675477920,0.06261253,95416.0,95413.0,0.01028573]
[1768675478627,0.01048053,95415.0,95412.0,0.01048086]
[1768675481404,0.01048053,95415.0,95411.0,0.01028587]
[1768675481960,0.06261263,95416.0,95411.0,0.01028587]
[1768675481961,0.0102104,95416.0,95412.0,0.01048086]
[1768675482262,0.06261259,95416.0,95411.0,0.06269047]
[1768675482416,0.06288341,95415.0,95411.0,0.01028587]
[1768675482617,0.06288341,95415.0,95411.0,0.01009112]
[1768675482844,0.01048053,95415.0,95411.0,0.01009112]
[1768675484358,0.06288323,95415.0,95411.0,0.01009112]
[1768675484571,0.01048053,95415.0,95411.0,0.01009112]
[1768675486288,0.01048053,95415.0,95412.0,0.01048086]
[1768675488010,0.0102104,95416.0,95413.0,0.01048075]
[1768675488737,0.06261265,95416.0,95412.0,0.01048086]
[1768675488880,0.0102104,95416.0,95412.0,0.01048086]
[1768675489282,0.01048053,95415.0,95412.0,0.01048086]
[1768675490105,0.0102104,95416.0,95412.0,0.01048086]
[1768675490312,0.06288132,95418.0,95413.0,0.01048075]
[1768675491480,0.0104802,95418.0,95414.0,0.01048064]
[1768675491696,0.01048042,95416.0,95412.0,0.01048086]
[1768675493512,0.01048064,95414.0,95411.0,0.01009112]
[1768675494100,0.01048053,95415.0,95411.0,0.01009112]
[1768675495004,0.01048042,95416.0,95413.0,0.01048075]
[1768675499616,0.01048042,95416.0,95413.0,0.01028599]
[1768675500303,0.01048053,95415.0,95411.0,0.01009112]
[1768675501323,0.01048064,95414.0,95411.0,0.01009112]
[1768675501522,0.01048053,95415.0,95412.0,0.01048086]
[1768675501756,0.01048064,95414.0,95411.0,0.01009112]
[1768675502151,0.01048042,95416.0,95412.0,0.01048086]
[1768675502552,0.01048042,95416.0,95412.0,0.06288472]
[1768675503112,0.01048031,95417.0,95413.0,0.06288445]
[1768675503241,0.0104802,95418.0,95414.0,0.06288382]
[1768675503444,0.0104802,95418.0,95414.0,0.01048064]
[1768675503635,0.0104802,95418.0,95415.0,0.01048053]
[1768675505308,0.0104802,95418.0,95415.0,0.01028577]
[1768675513957,0.0104802,95418.0,95413.0,0.06288426]
[1768675514158,0.06288206,95417.0,95413.0,0.01048075]
[1768675514370,0.05240437,95412.0,95410.0,0.02825052]
[1768675514578,0.05240351,95414.0,95410.0,0.02825052]
[1768675514788,0.05240386,95413.0,95410.0,0.02825052]
[1768675515011,0.05240472,95412.0,95410.0,0.02825052]
[1768675515818,0.01048075,95413.0,95410.0,0.02825052]
[1768675516359,0.0524043,95412.0,95410.0,0.02825052]
[1768675518000,0.05240634,95409.0,95406.0,0.127]
[1768675518216,0.01048119,95409.0,95406.0,0.127]
[1768675518393,0.0524065,95408.0,95406.0,0.127]
[1768675518564,0.01048119,95409.0,95402.0,0.127]
[1768675518565,0.01048152,95406.0,95402.0,0.127]
[1768675518966,0.01048163,95405.0,95402.0,0.127]
[1768675519334,0.01048163,95405.0,95401.0,0.01048207]
[1768675519540,0.062888,95408.0,95403.0,0.06269624]
[1768675520714,0.0104813,95408.0,95404.0,0.01048174]
[1768675521124,0.0104813,95408.0,95404.0,0.01028697]
[1768675521881,0.06288784,95408.0,95404.0,0.01028697]
[1768675522224,0.0104813,95408.0,95404.0,0.01028697]
[1768675522462,0.01048119,95409.0,95405.0,0.01048163]
[1768675522681,0.01048108,95410.0,95405.0,0.01048163]
[1768675522682,0.01048086,95412.0,95408.0,0.04736154]
[1768675522904,0.01048108,95410.0,95406.0,0.01048152]
[1768675523109,0.0104813,95408.0,95404.0,0.06289043]
[1768675523881,0.01048119,95409.0,95405.0,0.06288971]
[1768675524338,0.01048108,95410.0,95406.0,0.01048152]
[1768675524509,0.06288714,95409.0,95405.0,0.01048163]
[1768675524741,0.01048119,95409.0,95405.0,0.01048163]
[1768675525351,0.01048119,95409.0,95406.0,0.01048152]
[1768675525979,0.0104813,95408.0,95405.0,0.01048163]
[1768675526134,0.01048119,95409.0,95405.0,0.01048163]
[1768675526548,0.01048119,95409.0,95406.0,0.01048152]
[1768675527315,0.0104813,95408.0,95405.0,0.01028691]
[1768675528350,0.01048119,95409.0,95405.0,0.01028691]
[1768675529901,0.01048119,95409.0,95405.0,0.06269458]
[1768675530103,0.01048119,95409.0,95405.0,0.01028691]
[1768675533033,0.01048119,95409.0,95406.0,0.01048152]
[1768675533442,0.01048119,95409.0,95405.0,0.01048163]
[1768675533858,0.01048119,95409.0,95405.0,0.06288936]
[1768675534281,0.01048119,95409.0,95406.0,0.01048152]
[1768675534709,0.01048119,95409.0,95403.0,0.127]
[1768675534912,0.0104813,95408.0,95405.0,0.01048163]
[1768675535388,0.06288785,95408.0,95405.0,0.01048163]
[1768675535711,0.01048141,95407.0,95404.0,0.01048174]
[1768675536421,0.06288796,95408.0,95404.0,0.01048174]
[1768675536619,0.01048141,95407.0,95404.0,0.01048174]
[1768675537892,0.0104813,95408.0,95404.0,0.01048174]
[1768675538090,0.01048119,95409.0,95403.0,0.127]
[1768675538328,0.01048152,95406.0,95403.0,0.127]
[1768675538733,0.0628894,95406.0,95403.0,0.127]
[1768675539313,0.05240815,95405.0,95403.0,0.127]
[1768675539770,0.0524087,95404.0,95403.0,0.127]
[1768675542830,0.05231804,95404.0,95403.0,0.127]
[1768675543942,0.05231804,95404.0,95399.0,0.04810634]
[1768675543943,0.01048185,95403.0,95401.0,0.127]
[1768675549122,0.06289114,95403.0,95401.0,0.127]
[1768675549341,0.01048185,95403.0,95401.0,0.127]
[1768675551724,0.01048185,95403.0,95400.0,0.04810623]
[1768675551929,0.01048185,95403.0,95401.0,0.127]
[1768675553139,0.01048163,95405.0,95401.0,0.13748207]
[1768675554326,0.01048174,95404.0,95401.0,0.127]
[1768675556038,0.06289051,95404.0,95401.0,0.127]
[1768675557397,0.01048174,95404.0,95401.0,0.127]
[1768675558956,0.05240966,95403.0,95401.0,0.127]
[1768675560133,0.06289056,95404.0,95401.0,0.127]
[1768675560332,0.05240925,95403.0,95401.0,0.127]
[1768675560806,0.0524098,95402.0,95401.0,0.127]
[1768675561195,0.01048207,95401.0,95398.0,0.0469411]
[1768675561395,0.05241138,95400.0,95398.0,0.0469411]
[1768675561902,0.05241096,95400.0,95398.0,0.0469411]
[1768675562288,0.06280188,95401.0,95398.0,0.0469411]
[1768675564845,0.0524109,95400.0,95398.0,0.0469411]
[1768675565187,0.0628019,95401.0,95398.0,0.0469411]
[1768675565950,0.06280216,95401.0,95398.0,0.0469411]
[1768675566444,0.0103914,95401.0,95398.0,0.0574235]
[1768675567662,0.0103914,95401.0,95398.0,0.0469411]
[1768675567880,0.06280194,95401.0,95398.0,0.00022687]
[1768675568082,0.05241116,95400.0,95398.0,1e-08]
[1768675568224,0.05241116,95400.0,95390.0,0.02096446]
[1768675568225,0.06289743,95394.0,95391.0,0.03762405]
[1768675568452,0.06289743,95394.0,95391.0,0.04671423]
[1768675568615,0.01048283,95394.0,95391.0,0.04671423]
[1768675568815,0.06289733,95394.0,95391.0,0.04671423]
[1768675569094,0.05241481,95393.0,95391.0,0.04671423]
[1768675569303,0.05241481,95393.0,95387.0,0.0104836]
[1768675569304,0.05241983,95384.0,95380.0,0.04671423]
[1768675569480,0.01048393,95384.0,95380.0,0.01053154]
[1768675569719,0.01048382,95385.0,95381.0,0.01048426]
[1768675570255,0.01048371,95386.0,95382.0,0.01048415]
[1768675571291,4.678e-05,95385.0,95382.0,0.01048415]
[1768675572404,0.0105306,95385.0,95382.0,0.01048415]
[1768675582536,4.678e-05,95385.0,95382.0,0.01048415]
[1768675582676,0.01048371,95386.0,95382.0,0.01048415]
[1768675584101,0.06290238,95386.0,95382.0,0.01048415]
[1768675584685,0.06281171,95386.0,95382.0,0.01048415]
[1768675584942,0.06281171,95386.0,95380.0,0.01053154]
[1768675584943,0.01048382,95385.0,95380.0,4.717e-05]
[1768675585174,0.05241969,95384.0,95380.0,4.717e-05]
[1768675585547,0.0524198,95384.0,95380.0,4.717e-05]
[1768675586284,0.05242129,95382.0,95380.0,4.717e-05]
[1768675586481,0.06290533,95383.0,95380.0,4.717e-05]
[1768675586783,0.05242125,95382.0,95380.0,4.717e-05]
[1768675587731,0.05233057,95382.0,95380.0,4.717e-05]
[1768675589840,0.05242134,95381.0,95380.0,4.717e-05]
[1768675590080,0.05242126,95382.0,95380.0,4.717e-05]
[1768675590994,0.05242115,95382.0,95380.0,4.717e-05]
[1768675591180,0.05242134,95381.0,95380.0,4.717e-05]
[1768675591793,0.05242108,95382.0,95380.0,4.717e-05]
[1768675592436,0.05242134,95381.0,95380.0,4.717e-05]
[1768675592630,0.06290626,95380.0,95376.0,0.01048481]
[1768675592826,0.06290626,95380.0,95376.0,0.0103378]
[1768675593398,0.01048437,95380.0,95376.0,0.0103378]
[1768675593866,0.01048448,95379.0,95376.0,4.716e-05]